Cogmind - Beta 10.2 @@@ ROGUE MODE // 2021.05.16 @ 00:20:47 Player: mat Result: Destroyed by Swarm Drone with Compact Gauss Rifle Performance ------------- Evolutions (9) 4500 Regions Visited (15) 3000 Robots Destroyed (14) 70 Value Destroyed (361) 361 Prototype IDs (8) 160 Alien Tech Used (0) 0 Bonus (1850) 1850 TOTAL SCORE: 9941 Bonus ------- Triggered Max Security 1000 Follower Combat Kills 50 Aligned with FarCom 300 Scanned by Researcher 500 Cogmind --------- Core Integrity 0/1600 Matter 244/300 Energy 189/190 System Corruption 0% Temperature Cool (0) Movement Core (250) Ox4 Location -1/Access Parts ------- > --- POWER (5) -------- Light Quantum Reactor > --- PROPULSION (10) -- (None) > --- UTILITY (8) ------ Visual Processing Unit Advanced Terrain Scan Processor Advanced Hacking Suite Ghost Barrier > --- WEAPON (2) ------- (None) > --- INVENTORY (4) ---- (None) Peak State ------------ > --- POWER ------------ Light Antimatter Reactor Light Antimatter Reactor Light Particle Reactor Quantum Reactor > --- PROPULSION ------- Xenon Bombardment Thruster Nuclear Pulse Thruster Nuclear Pulse Thruster Field Propulsion Drive Impulse Thruster Q-thruster Q-thruster Impulse Thruster Array > --- UTILITY ---------- Experimental Cooling System Visual Processing Unit Experimental Signal Interpreter Advanced Terrain Scan Processor Experimental Core Analyzer Hacking Suite Improved Component Analysis Suite System Guard > --- WEAPON ----------- Hardcell Cannon > --- INVENTORY -------- Light Quantum Reactor Cooled Q-thruster Experimental Sensor Array Ghost Barrier [Rating: 144] Favorites ----------- Power Light Antimatter Reactor Engine Light Ion Engine Power Core Light Nuclear Core Reactor Light Antimatter Reactor Propulsion Flight Unit Wheel Wheel Hover Unit Gravmag System Flight Unit Flight Unit Utility Hacking Suite Device Improved Terrain Scanner Storage Small Storage Unit Processor Visual Processing Unit Hackware Hacking Suite Weapon Light Assault Rifle Energy Gun Small Laser Ballistic Gun Light Assault Rifle Ballistic Cannon Hardcell Cannon Launcher Heavy Shock Bomb Launcher Build | -11 -10 -10 -9 -9 -9 -8 -8 -7 -6 -5 -4 -3 -2 -2 -1 ------- Run | Scr Mat Min Mat Min Exi Min Mat Fac Fac Fac Fac Res Res Tes Acc Slots Evolved 18 | . . . 2 . . . 2 2 2 2 2 2 2 . 2 Power 4 | . . . . . . . . 1 . . 1 1 . . 1 Propulsion 8 | . . . . . . . 1 1 . 1 1 1 2 . 1 Utility 6 | . . . 2 . . . 1 . 2 1 . . . . . Weapon . | . . . . . . . . . . . . . . . . Parts Attached 71 | 6 5 4 . 1 1 1 1 15 2 4 3 5 5 3 15 Power 18 | 1 1 1 . . . . . 2 1 . 1 2 1 . 8 Engine 3 | 1 1 1 . . . . . . . . . . . . . Core 3 | . . . . . . . . 2 1 . . . . . . Reactor 12 | . . . . . . . . . . . 1 2 1 . 8 Propulsion 28 | 2 2 1 . . . . 1 8 . 3 1 3 3 1 3 Treads . | . . . . . . . . . . . . . . . . Leg . | . . . . . . . . . . . . . . . . Wheel 2 | 2 . . . . . . . . . . . . . . . Hover 3 | . . . . . . . . 3 . . . . . . . Flight 23 | . 2 1 . . . . 1 5 . 3 1 3 3 1 3 Utility 17 | 1 2 . . 1 1 1 . 3 1 1 1 . 1 1 3 Device 7 | . 1 . . 1 1 . . 1 . 1 1 . 1 . . Storage 1 | 1 . . . . . . . . . . . . . . . Processor 4 | . 1 . . . . . . 1 1 . . . . 1 . Hackware 5 | . . . . . . 1 . 1 . . . . . . 3 Protection . | . . . . . . . . . . . . . . . . Artifact . | . . . . . . . . . . . . . . . . Weapon 8 | 2 . 2 . . . . . 2 . . . . . 1 1 Energy Gun 2 | . . 1 . . . . . 1 . . . . . . . Energy Cannon . | . . . . . . . . . . . . . . . . Ballistic Gun 4 | 2 . 1 . . . . . 1 . . . . . . . Ballistic Cannon 1 | . . . . . . . . . . . . . . 1 . Launcher 1 | . . . . . . . . . . . . . . . 1 Special Weapon . | . . . . . . . . . . . . . . . . Impact Weapon . | . . . . . . . . . . . . . . . . Slashing Weapon . | . . . . . . . . . . . . . . . . Piercing Weapon . | . . . . . . . . . . . . . . . . Special Melee Weapon . | . . . . . . . . . . . . . . . . Unidentified Prototypes 8 | . . . . 1 1 . . . 1 . 1 . . 2 2 Parts Lost 36 | . 1 4 . . . . 3 . . 2 6 . . 4 16 Power 8 | . 1 1 . . . . 1 . . . 2 . . . 3 Propulsion 18 | . . 1 . . . . 1 . . 2 2 . . 4 8 Utility 6 | . . . . . . . . . . . 2 . . . 4 Weapon 4 | . . 2 . . . . 1 . . . . . . . 1 Highest Loss Streak 12 | . 1 4 . . . . 3 . . 2 3 . . 4 12 Average Slot Usage (%) 75 | . 93 94 77 84 96 100 75 68 75 74 79 70 78 84 60 Engine 3 | . 14 12 11 11 11 11 8 . . . . . . . . Core 3 | . . . . . . . . 3 13 11 8 . . . . Reactor 3 | . . . . . . . . . . . 3 12 13 17 11 Wheel 1 | . 21 . . . . . . . . . . . . . . Hover 2 | . . . . . . . . 8 . . . . . . . Flight 21 | . 6 26 22 22 22 22 24 15 26 24 29 28 34 32 18 Device 11 | . 10 14 11 18 29 22 9 13 6 7 12 9 12 13 4 Processor 12 | . 1 14 11 11 11 11 9 13 15 17 15 14 13 16 13 Hackware 7 | . . . . . . 11 9 7 13 11 7 4 4 4 13 Energy Gun 2 | . . 13 11 11 11 11 6 . . . . . . . . Ballistic Gun 4 | . 28 13 11 11 11 11 9 3 . . . . . . . Naked Turns . | . . . . . . . . . . . . . . . . Heaviest Build 72 | 11 12 6 6 7 8 8 6 12 13 14 27 40 62 72 69 Greatest Support 91 | 26 26 8 8 8 8 8 8 23 23 39 47 64 91 91 81 Greatest Overweight (x) 4 | . . . . . . . . . . . . . . . 4 Average Overweight (x) . | . . . . . . . . . . . . . . . . Largest Inventory Capacity 6 | 6 6 4 4 4 4 4 4 4 4 4 4 4 4 4 4 Average Capacity 4 | 5 5 4 4 4 4 4 4 4 4 4 4 4 4 4 4 Most Carried 5 | 5 4 4 3 4 4 4 4 4 4 4 4 4 4 4 4 Average Carried 3 | 2 2 2 3 3 3 3 3 3 4 4 3 3 3 3 3 Final Capacity 6 | 6 4 4 4 4 4 4 4 4 4 4 4 4 4 4 4 Final Carried 4 | 2 2 3 3 3 3 4 3 4 4 4 4 4 4 3 . Class Distribution -------------------- 18% | Scavenger-Scout 17% | Hacker-Scout 14% | Generator-Sprinter 12% | Hacker-Sprinter 11% | Scavenger-Mutant 11% | Scout 8% | Mutant Dominant Class ---------------- Mutant | -10/Materials Scavenger-Mutant | -10/Mines Scavenger-Mutant | -9/Materials Scavenger-Mutant | -9/Mines Scavenger-Mutant | -9/Exiles Scavenger-Scout | -8/Mines Scavenger-Scout | -8/Materials Scout | -7/Factory Hacker-Scout | -6/Factory Hacker-Scout | -5/Factory Generator-Scout | -4/Factory Generator-Sprinter | -3/Research Generator-Sprinter | -2/Research Generator-Sprinter | -2/Testing Hacker-Sprinter | -1/Access Resources | -11 -10 -10 -9 -9 -9 -8 -8 -7 -6 -5 -4 -3 -2 -2 -1 ----------- Run | Scr Mat Min Mat Min Exi Min Mat Fac Fac Fac Fac Res Res Tes Acc Matter Collected 808 | 118 122 116 . . . 65 . 131 . . 107 . 70 . 79 Remotely . | . . . . . . . . . . . . . . . . Salvage Created 376 | . 155 116 . . . . . 45 . . . . . 60 . Parts 28 | . 12 10 . . . . . 4 . . . . . 2 . Haulers Intercepted . | . . . . . . . . . . . . . . . . Recyclers Shooed . | . . . . . . . . . . . . . . . . Parts Field Recycled . | . . . . . . . . . . . . . . . . Retrieved Matter . | . . . . . . . . . . . . . . . . Parts Self-Destructed . | . . . . . . . . . . . . . . . . Prevented . | . . . . . . . . . . . . . . . . Kills | -11 -10 -10 -9 -9 -9 -8 -8 -7 -6 -5 -4 -3 -2 -2 -1 ------- Run | Scr Mat Min Mat Min Exi Min Mat Fac Fac Fac Fac Res Res Tes Acc Combat Hostiles Destroyed 11 | . 5 5 . . . . . 1 . . . . . . . Guns 11 | . 5 5 . . . . . 1 . . . . . . . Classes Destroyed 6 | . 4 . . . . . . 1 . . . . . 1 . Worker 1 | . 1 . . . . . . . . . . . . . . Watcher 1 | . 1 . . . . . . . . . . . . . . Swarmer 6 | . 3 3 . . . . . . . . . . . . . Grunt 4 | . 2 2 . . . . . . . . . . . . . Researcher 1 | . . . . . . . . . . . . . . 1 . Programmer 1 | . . . . . . . . 1 . . . . . . . Best Kill Streak 4 | . 4 4 . . . . . 1 . . . . . 1 . Combat Bots Only 4 | . 3 4 . . . . . 1 . . . . . . . Max Kills in Single Turn 2 | . 2 1 . . . . . 1 . . . . . 1 . Gunslinging . | . . . . . . . . . . . . . . . . Exploded . | . . . . . . . . . . . . . . . . Melee . | . . . . . . . . . . . . . . . . Uniques/NPCs Destroyed . | . . . . . . . . . . . . . . . . Combat | -11 -10 -10 -9 -9 -9 -8 -8 -7 -6 -5 -4 -3 -2 -2 -1 -------- Run | Scr Mat Min Mat Min Exi Min Mat Fac Fac Fac Fac Res Res Tes Acc Damage Taken 4238 | . 242 310 . . . 7 125 23 42 191 335 80 54 336 2493 Core 1988 | . 54 54 . . . . 47 . 29 79 60 23 25 . 1617 Absorbed by Shields . | . . . . . . . . . . . . . . . . Core Remaining (%) 92 | 100 . 56 . . . 100 91 100 96 92 94 98 . 98 . Volleys Fired 50 | . 23 20 . . . . . 3 . . . . . 3 1 Largest 2 | . 2 2 . . . . . 2 . . . . . 1 1 Hottest 65 | . 40 60 . . . . . 48 . . . . . 65 46 Shots Fired 89 | . 46 34 . . . . . 5 . . . . . 3 1 Gun 85 | . 46 34 . . . . . 5 . . . . . . . Cannon 3 | . . . . . . . . . . . . . . 3 . Launcher 1 | . . . . . . . . . . . . . . . 1 Special . | . . . . . . . . . . . . . . . . Kinetic 74 | . 46 20 . . . . . 5 . . . . . 3 . Thermal 14 | . . 14 . . . . . . . . . . . . . Explosive . | . . . . . . . . . . . . . . . . Electromagnetic 1 | . . . . . . . . . . . . . . . 1 Robot Hit Streak 9 | . 6 9 . . . . . 3 . . . . . 5 . Robot Miss Streak 9 | . 9 2 . . . . . 2 . . . . . . . Penetration Max . | . . . . . . . . . . . . . . . . Secondary Targets 2 | . 1 1 . . . . . . . . . . . . . Max Gunslinging Chain 1 | . 1 1 . . . . . . . . . . . . . Shots Hit Robots 53 | . 24 24 . . . . . 3 . . . . . 2 . Core Hits 30 | . 12 12 . . . . . 3 . 1 . . . 2 . Critical Hits . | . . . . . . . . . . . . . . . . Critical Kills . | . . . . . . . . . . . . . . . . Critical Parts Destroyed . | . . . . . . . . . . . . . . . . Melee Attacks . | . . . . . . . . . . . . . . . . Impact . | . . . . . . . . . . . . . . . . Slashing . | . . . . . . . . . . . . . . . . Piercing . | . . . . . . . . . . . . . . . . Sneak Attacks . | . . . . . . . . . . . . . . . . Combat Hostiles . | . . . . . . . . . . . . . . . . Follow-up Attacks . | . . . . . . . . . . . . . . . . Damage Inflicted 591 | . 171 222 . . . . . 45 . 1 . . . 72 80 Guns 438 | . 171 222 . . . . . 45 . . . . . . . Cannons 72 | . . . . . . . . . . . . . . 72 . Explosions 76 | . . . . . . . . . . . . . . . 76 Melee . | . . . . . . . . . . . . . . . . Ramming 5 | . . . . . . . . . . 1 . . . . 4 Kinetic 413 | . 171 125 . . . . . 45 . . . . . 72 . Thermal 97 | . . 97 . . . . . . . . . . . . . Explosive . | . . . . . . . . . . . . . . . . Electromagnetic 76 | . . . . . . . . . . . . . . . 76 Impact . | . . . . . . . . . . . . . . . . Slashing . | . . . . . . . . . . . . . . . . Piercing . | . . . . . . . . . . . . . . . . Highest Corruption 1 | . . . . . . . . . . . . 1 . . . Average Corruption 1 | . . . . . . . . . . . . 1 . . . Corruption Purged . | . . . . . . . . . . . . . . . . Effects 1 | . . . . . . . . . . . . 1 . . . Data Loss (minor) 1 | . . . . . . . . . . . . 1 . . . Overload Shots . | . . . . . . . . . . . . . . . . Overflow Damage . | . . . . . . . . . . . . . . . . Projectiles . | . . . . . . . . . . . . . . . . Explosions . | . . . . . . . . . . . . . . . . Melee . | . . . . . . . . . . . . . . . . Knockbacks . | . . . . . . . . . . . . . . . . Impact . | . . . . . . . . . . . . . . . . Kinetic . | . . . . . . . . . . . . . . . . Secondary . | . . . . . . . . . . . . . . . . Self-Inflicted Damage 9 | . . . . . . . . . . . . . . . 9 Shots 1 | . . . . . . . . . . . . . . . 1 Rammed 2 | . . . . . . . . . . 1 . . . . 1 Targets Rammed 2 | . . . . . . . . . . 1 . . . . 1 Kicked . | . . . . . . . . . . . . . . . . Crushed . | . . . . . . . . . . . . . . . . Highest Temperature 268 | . 8 94 . . . . . 2 . 125 78 4 98 268 . Average Temperature 60 | . 5 27 . . . . . 1 . 64 27 3 31 97 . Received Heat Transfer 336 | . 24 90 . . . . 27 6 . 9 81 18 9 45 27 Siege Activations . | . . . . . . . . . . . . . . . . Robots Corrupted . | . . . . . . . . . . . . . . . . Combat Hostiles . | . . . . . . . . . . . . . . . . Parts Fried . | . . . . . . . . . . . . . . . . Impact Corruptions . | . . . . . . . . . . . . . . . . Robots Melted . | . . . . . . . . . . . . . . . . Combat Hostiles . | . . . . . . . . . . . . . . . . Parts Melted 1 | . . 1 . . . . . . . . . . . . . Heat Transferred 225 | . . 225 . . . . . . . . . . . . . Parts Sabotaged . | . . . . . . . . . . . . . . . . Parts Stolen . | . . . . . . . . . . . . . . . . Parts Stripped . | . . . . . . . . . . . . . . . . Power Chain Reactions . | . . . . . . . . . . . . . . . . Missiles Intercepted . | . . . . . . . . . . . . . . . . Alert | -11 -10 -10 -9 -9 -9 -8 -8 -7 -6 -5 -4 -3 -2 -2 -1 ------- Run | Scr Mat Min Mat Min Exi Min Mat Fac Fac Fac Fac Res Res Tes Acc Peak Influence 1695 | . 167 193 170 66 . . 115 120 224 284 219 258 213 1695 1380 Initial 1100 | . . 64 74 66 . . . 58 14 109 72 114 144 119 1100 Average 311 | . 68 162 114 66 . . 16 45 87 126 100 166 157 1610 1068 Maximum Alert Level 5 | . . . . . . . . . 1 1 1 1 1 5 4 Low Security (%) 76 | 100 100 100 100 100 . 100 100 100 94 91 91 56 99 . . Level 1 2 | . . . . . . . . . 5 8 8 43 . . . Level 2 . | . . . . . . . . . . . . . . . . Level 3 5 | . . . . . . . . . . . . . . . 30 Level 4 11 | . . . . . . . . . . . . . . . 69 Level 5 . | . . . . . . . . . . . . . . . . High Security . | . . . . . . . . . . . . . . . . Max Security 4 | . . . . . . . . . . . . . . 99 . Squads Dispatched 23 | . 1 . 2 . . . 1 3 1 . 4 . 1 7 3 Investigation 5 | . . . 1 . . . . 1 . . 2 . 1 . . Extermination 3 | . . . . . . . . 2 . . . . . . 1 Reinforcement 9 | . 1 . 1 . . . 1 . 1 . 2 . . 1 2 Assault 6 | . . . . . . . . . . . . . . 6 . Garrison . | . . . . . . . . . . . . . . . . Intercept . | . . . . . . . . . . . . . . . . Construction Impeded . | . . . . . . . . . . . . . . . . Haulers Reinforced . | . . . . . . . . . . . . . . . . Stealth | -11 -10 -10 -9 -9 -9 -8 -8 -7 -6 -5 -4 -3 -2 -2 -1 --------- Run | Scr Mat Min Mat Min Exi Min Mat Fac Fac Fac Fac Res Res Tes Acc Distress Signals 12 | . 1 . 1 . . . . 1 . 1 5 1 . . 2 Communications Jammed . | . . . . . . . . . . . . . . . . Distress Signals . | . . . . . . . . . . . . . . . . Times Spotted 181 | . 9 6 7 2 . 4 12 8 11 8 27 8 4 37 38 Peak Tracking Total 31 | . 6 5 7 2 . 4 14 4 5 9 19 7 2 31 21 Tactical Retreats 26 | . . 1 . . . . 2 2 3 2 5 1 1 2 7 Traps | -11 -10 -10 -9 -9 -9 -8 -8 -7 -6 -5 -4 -3 -2 -2 -1 ------- Run | Scr Mat Min Mat Min Exi Min Mat Fac Fac Fac Fac Res Res Tes Acc Traps Triggered 6 | . . . 1 . . . . 1 . 2 . 1 1 . . Indirectly . | . . . . . . . . . . . . . . . . Trap Hack Attempts . | . . . . . . . . . . . . . . . . Triggered . | . . . . . . . . . . . . . . . . Disarmed . | . . . . . . . . . . . . . . . . Reprogrammed . | . . . . . . . . . . . . . . . . Reused . | . . . . . . . . . . . . . . . . Traps Extracted . | . . . . . . . . . . . . . . . . Installed . | . . . . . . . . . . . . . . . . Triggered . | . . . . . . . . . . . . . . . . Machines | -11 -10 -10 -9 -9 -9 -8 -8 -7 -6 -5 -4 -3 -2 -2 -1 ---------- Run | Scr Mat Min Mat Min Exi Min Mat Fac Fac Fac Fac Res Res Tes Acc Machines Disabled 1 | . . . . . . . . . . . . . . 1 . Max in Single Turn 1 | . . . . . . . . . . . . . . 1 . Machines Sabotaged . | . . . . . . . . . . . . . . . . Garrisons Compromised 1 | . . . . . . . . . 1 . . . . . . Overloaded Fab Kills . | . . . . . . . . . . . . . . . . Fab Network Shutdowns . | . . . . . . . . . . . . . . . . Hacking | -11 -10 -10 -9 -9 -9 -8 -8 -7 -6 -5 -4 -3 -2 -2 -1 --------- Run | Scr Mat Min Mat Min Exi Min Mat Fac Fac Fac Fac Res Res Tes Acc Machines Accessed 16 | . 1 1 . . 2 . . 3 1 1 4 1 1 . 1 Terminals 14 | . 1 1 . . . . . 3 1 1 4 1 1 . 1 Fabricators . | . . . . . . . . . . . . . . . . Repair Stations . | . . . . . . . . . . . . . . . . Recycling Units . | . . . . . . . . . . . . . . . . Scanalyzers . | . . . . . . . . . . . . . . . . Garrison Access . | . . . . . . . . . . . . . . . . Total Hacks 47 | . 1 2 . . 17 . . 5 1 4 12 2 2 . 1 Successful 32 | . . 1 . . 17 . . 2 1 3 6 1 1 . . Failed 15 | . 1 1 . . . . . 3 . 1 6 1 1 . 1 Catastrophic 4 | . . . . . . . . 1 . . 1 1 1 . . Database Lockouts . | . . . . . . . . . . . . . . . . Manual 24 | . 1 . . . 1 . . 5 . 2 11 1 2 . 1 Terminals 30 | . 1 2 . . . . . 5 1 4 12 2 2 . 1 Fabricators . | . . . . . . . . . . . . . . . . Repair Stations . | . . . . . . . . . . . . . . . . Recycling Units . | . . . . . . . . . . . . . . . . Scanalyzers . | . . . . . . . . . . . . . . . . Garrison Access . | . . . . . . . . . . . . . . . . Terminal Hacks 31 | . . 1 . . 17 . . 2 1 3 5 1 1 . . Record 19 | . . . . . 17 . . . . 2 . . . . . Robot Analysis 2 | . . . . . . . . . 1 . . 1 . . . Level Access Points 1 | . . . . . . . . . . . 1 . . . . Branch Access Points 2 | . . . . . . . . . . . 1 . 1 . . Emergency Access Points 1 | . . . . . . . . . . . 1 . . . . Alert Level 2 | . . . . . . . . 1 . . 1 . . . . Unreport Threat 3 | . . . . . . . . 1 . 1 1 . . . . Dispatch Records 1 | . . 1 . . . . . . . . . . . . . Fabricator Hacks . | . . . . . . . . . . . . . . . . Repair Station Hacks . | . . . . . . . . . . . . . . . . Recycling Unit Hacks . | . . . . . . . . . . . . . . . . Scanalyzer . | . . . . . . . . . . . . . . . . Garrison Access Hacks . | . . . . . . . . . . . . . . . . Unauthorized Hacks 1 | . . . . . . . . . . . 1 . . . . Terminals 1 | . . . . . . . . . . . 1 . . . . Botnet 1 | . . . . . . . . . . . 1 . . . . Fabricators . | . . . . . . . . . . . . . . . . Repair Stations . | . . . . . . . . . . . . . . . . Recycling Units . | . . . . . . . . . . . . . . . . Scanalyzers . | . . . . . . . . . . . . . . . . Garrison Access . | . . . . . . . . . . . . . . . . Data Cores Recovered . | . . . . . . . . . . . . . . . . Used . | . . . . . . . . . . . . . . . . Hacking Detections 9 | . 1 . . . . . . 2 1 . 3 1 1 . . Full Trace Events 4 | . . . . . . . . 1 . . 2 . 1 . . Feedback Events . | . . . . . . . . . . . . . . . . Feedback Blocked . | . . . . . . . . . . . . . . . . Robot Schematics Acquired . | . . . . . . . . . . . . . . . . Robots Built . | . . . . . . . . . . . . . . . . Matter . | . . . . . . . . . . . . . . . . Time . | . . . . . . . . . . . . . . . . Total Robot Build Rating . | . . . . . . . . . . . . . . . . Part Schematics Acquired . | . . . . . . . . . . . . . . . . Parts Built . | . . . . . . . . . . . . . . . . Matter . | . . . . . . . . . . . . . . . . Time . | . . . . . . . . . . . . . . . . Total Part Build Rating . | . . . . . . . . . . . . . . . . Parts Repaired . | . . . . . . . . . . . . . . . . Time . | . . . . . . . . . . . . . . . . Parts Recycled . | . . . . . . . . . . . . . . . . Recycled Matter . | . . . . . . . . . . . . . . . . Retrieved Matter . | . . . . . . . . . . . . . . . . Retrieved Components . | . . . . . . . . . . . . . . . . Parts Scanalyzed . | . . . . . . . . . . . . . . . . Part Schematics Acquired . | . . . . . . . . . . . . . . . . Parts Damaged . | . . . . . . . . . . . . . . . . Bothacking | -11 -10 -10 -9 -9 -9 -8 -8 -7 -6 -5 -4 -3 -2 -2 -1 ------------ Run | Scr Mat Min Mat Min Exi Min Mat Fac Fac Fac Fac Res Res Tes Acc Used RIF Installer . | . . . . . . . . . . . . . . . . Robots Hacked . | . . . . . . . . . . . . . . . . Non-combat . | . . . . . . . . . . . . . . . . Combat . | . . . . . . . . . . . . . . . . Robot Hacks Applied . | . . . . . . . . . . . . . . . . Relay Couplers Released . | . . . . . . . . . . . . . . . . Robots Rewired . | . . . . . . . . . . . . . . . . Allies Hacked . | . . . . . . . . . . . . . . . . Hacks Repelled . | . . . . . . . . . . . . . . . . Allies | -11 -10 -10 -9 -9 -9 -8 -8 -7 -6 -5 -4 -3 -2 -2 -1 -------- Run | Scr Mat Min Mat Min Exi Min Mat Fac Fac Fac Fac Res Res Tes Acc Total Allies 3 | . . 3 . . . . . . . . . . . . . Largest Group 3 | . . 3 3 . . . . . . . . . . . . Highest-Rated Group 40 | . . 40 40 . . . . . . . . . . . . Highest-Rated Ally 16 | . . 16 16 . . . . . . . . . . . . Total Orders . | . . . . . . . . . . . . . . . . Ally Attacks 22 | . . . 22 . . . . . . . . . . . . Total Damage 253 | . . . 253 . . . . . . . . . . . . Kills 5 | . . . 5 . . . . . . . . . . . . Allies Corrupted . | . . . . . . . . . . . . . . . . Allies Melted . | . . . . . . . . . . . . . . . . Intel | -11 -10 -10 -9 -9 -9 -8 -8 -7 -6 -5 -4 -3 -2 -2 -1 ------- Run | Scr Mat Min Mat Min Exi Min Mat Fac Fac Fac Fac Res Res Tes Acc Robot Analysis Total 2 | . . . . . . . . . 1 . . 1 . . . Derelict Logs Recovered 2 | . . . . 2 . . . . . . . . . . . Drone Launches 1 | . . . . . 1 . . . . . . . . . . Drone Recoveries . | . . . . . . . . . . . . . . . . Exploration | -11 -10 -10 -9 -9 -9 -8 -8 -7 -6 -5 -4 -3 -2 -2 -1 ------------- Run | Scr Mat Min Mat Min Exi Min Mat Fac Fac Fac Fac Res Res Tes Acc Turns Passed 4395 | 54 267 220 88 113 151 173 155 1114 200 378 245 129 214 179 715 Spaces Moved 8206 | 49 267 286 189 266 401 365 122 1522 527 501 678 487 448 466 1632 Core 107 | 9 . . . . . . . . . . . . . . 98 Treads . | . . . . . . . . . . . . . . . . Legs . | . . . . . . . . . . . . . . . . Wheels 193 | 40 153 . . . . . . . . . . . . . . Hover 159 | . . . . . . . . 159 . . . . . . . Flight 7747 | . 114 286 189 266 401 365 122 1363 527 501 678 487 448 466 1534 Fastest Speed 19 | 50 37 37 37 37 37 37 37 31 31 28 25 22 19 19 20 Average Speed 32 | 82 67 37 37 37 37 37 37 40 31 29 26 23 20 20 26 Slowest Speed 250 | 90 90 40 37 37 37 37 37 60 31 34 34 34 28 26 250 Overloaded Moves . | . . . . . . . . . . . . . . . . Propulsion Burnouts . | . . . . . . . . . . . . . . . . Robots Hopped 87 | . . 7 . 1 . 2 4 8 6 4 20 6 3 4 22 Cave-ins Triggered . | . . . . . . . . . . . . . . . . Exploration Rate (%) 35 | 4 55 60 23 48 91 40 23 45 19 19 26 21 10 37 49 Regions Visited 15 Branch Regions 5 Pre-discovered Areas 1 | . . . . 1 . . . . . . . . . . . Known Exits Taken 6 | . . . . . . . 1 . 1 1 1 . 1 1 . Unknown Exits Taken 9 | 1 1 1 1 1 1 1 . 1 . . . 1 . . . Scrap Searched 3 | . . 1 . 1 . 1 . . . . . . . . . Spaces Dug . | . . . . . . . . . . . . . . . . Terrain Destroyed . | . . . . . . . . . . . . . . . . Melee . | . . . . . . . . . . . . . . . . Projectile . | . . . . . . . . . . . . . . . . AOE . | . . . . . . . . . . . . . . . . Terrain Rammed . | . . . . . . . . . . . . . . . . Walls Destroyed . | . . . . . . . . . . . . . . . . Machines Disabled . | . . . . . . . . . . . . . . . . Actions | -11 -10 -10 -9 -9 -9 -8 -8 -7 -6 -5 -4 -3 -2 -2 -1 --------- Run | Scr Mat Min Mat Min Exi Min Mat Fac Fac Fac Fac Res Res Tes Acc Total 9767 | 62 318 361 206 278 402 399 227 2012 556 726 723 491 564 543 1899 Wait 1444 | . 16 55 18 12 . 35 108 443 33 221 62 3 110 70 258 Move 8025 | 48 266 271 188 263 400 360 113 1505 514 493 639 475 443 457 1590 Hop 80 | . . 7 . 1 . 2 4 8 6 4 18 5 1 4 20 Pick Up 37 | 8 5 4 . 1 1 1 . 5 . 1 1 1 5 2 2 Fast Attach 29 | . . 1 . . . . . 8 1 4 2 5 1 1 6 Attach 32 | 6 5 3 . 1 1 . 1 3 . . 1 . 4 2 5 Detach 8 | . . . . . . . . 4 . . . . . . 4 Swap 10 | . . . . . . 1 . 4 1 . . . . . 4 Drop 29 | . 3 . . . . . 1 11 1 1 . 2 . 2 8 Fire 50 | . 23 20 . . . . . 3 . . . . . 3 1 Melee . | . . . . . . . . . . . . . . . . Ram 1 | . . . . . . . . . . . . . . . 1 Kick . | . . . . . . . . . . . . . . . . Crush . | . . . . . . . . . . . . . . . . Escape Stasis 22 | . . . . . . . . 18 . 2 . . . 2 . Rewire . | . . . . . . . . . . . . . . . . Trap . | . . . . . . . . . . . . . . . . Miscellaneous . | . . . . . . . . . . . . . . . . Route ------- -11/Scrapyard -10/Materials (discovered 3 exits: [*Mat x2] / *Min) -10/Mines -9/Materials -9/Mines (discovered 2 exits: [*Mat] / *Exi) -9/Exiles (discovered 2 exits: [*Min x2]) -8/Mines -8/Materials (discovered 2 exits: *Fac / [*Sto]) -7/Factory -6/Factory -5/Factory -4/Factory (discovered 8 exits: *Res x4 / Upp x2 / Ext x2) -3/Research -2/Research (discovered 2 exits: *Tes x2) -2/Testing -1/Access History --------- Turn | Location | Event 31 | -11/Scrapyard | Discovered new exit (range 16) 55 | -11/Scrapyard | Entered Materials 135 | -10/Materials | Discovered new exit (range 7) 268 | -10/Materials | Discovered new exit (range 13) 293 | -10/Materials | Discovered new exit (range 8) 321 | -10/Materials | Build established: Mutant 322 | -10/Materials | Entered Mines 372 | -10/Mines | Lost 4 parts (1p1n2w) 493 | -10/Mines | Assisted by bots powering up and referring to "LRC-V3" 504 | -10/Mines | Discovered new exit (range 14) 542 | -10/Mines | Entered Materials 542 | -9/Materials | Accompanied by 3 allies 542 | -9/Materials | Evolved 2 slots: Utility x2 615 | -9/Materials | Discovered new exit (range 18) 630 | -9/Materials | Entered Mines 633 | -9/Mines | Learned location of Zion (-6) 638 | -9/Mines | Learned location of 1 exit from Materials 670 | -9/Mines | Build established: Scavenger-Mutant 674 | -9/Mines | Found a damaged Exp. Sensor Array with a note attached 675 | -9/Mines | Found Prototype Device 676 | -9/Mines | Identified Exp. Sensor Array 722 | -9/Mines | Discovered new exit (range 9) 741 | -9/Mines | Deemed a non-threat by the Exiles lab entrance 741 | -9/Mines | Discovered new exit (range 5) 743 | -9/Mines | Entered Exiles 748 | -9/Exiles | Discovered new exit (range 17) 753 | -9/Exiles | Met 8R-AWN 759 | -9/Exiles | Met EX-HEX 769 | -9/Exiles | Met EX-BIN 774 | -9/Exiles | Aligned with FarCom system 774 | -9/Exiles | Given EX-Vault access code 794 | -9/Exiles | Opened EX-Vault 795 | -9/Exiles | Found Prototype Device 799 | -9/Exiles | Identified Supersonic Drone Bay 805 | -9/Exiles | Warned to stay clear of 0b10 Research branches 815 | -9/Exiles | Met EX-DEC 841 | -9/Exiles | Visited The Gauntlet 888 | -9/Exiles | Discovered new exit (range 14) 894 | -9/Exiles | Left Exiles lab with Supersonic Drone Bay 894 | -9/Exiles | Entered Mines 894 | -8/Mines | Accompanied by 1 ally 1065 | -8/Mines | Discovered new exit (range 5) 1067 | -8/Mines | Entered Materials 1067 | -8/Materials | Evolved 2 slots: Propulsion x1, Utility x1 1068 | -8/Materials | Identified exit to Factory 1184 | -8/Materials | Build established: Scavenger-Scout 1198 | -8/Materials | Discovered new exit (range 13) 1222 | -8/Materials | Entered Factory 1222 | -7/Factory | Evolved 2 slots: Power x1, Propulsion x1 1243 | -7/Factory | Lost 3 parts (1p1n1w) 2021 | -7/Factory | Build established: Scout 2322 | -7/Factory | Discovered new exit (range 18) 2336 | -7/Factory | Entered another Factory area 2336 | -6/Factory | Evolved 2 slots: Utility x2 2476 | -6/Factory | Found Prototype Processor 2476 | -6/Factory | Identified Exp. Signal Interpreter 2516 | -6/Factory | Build established: Hacker-Scout 2533 | -6/Factory | Discovered new exit (range 8) 2535 | -6/Factory | Identified exit to Factory 2536 | -6/Factory | Entered another Factory area 2536 | -5/Factory | Evolved 2 slots: Propulsion x1, Utility x1 2907 | -5/Factory | Discovered new exit (range 18) 2913 | -5/Factory | Identified exit to Factory 2914 | -5/Factory | Entered another Factory area 2914 | -4/Factory | Evolved 2 slots: Power x1, Propulsion x1 3010 | -4/Factory | Identified exit to Upper Caves 3010 | -4/Factory | Identified exit to Extension 3114 | -4/Factory | Identified exit to Research 3131 | -4/Factory | Lost 3 parts (1p1n1u) 3159 | -4/Factory | Entered Research 3159 | -3/Research | Evolved 2 slots: Power x1, Propulsion x1 3284 | -3/Research | Discovered new exit (range 17) 3288 | -3/Research | Entered another Research area 3288 | -2/Research | Evolved 2 slots: Propulsion x2 3415 | -2/Research | Identified exit to Testing 3449 | -2/Research | Build established: Generator-Sprinter 3502 | -2/Research | Entered Testing 3503 | -2/Testing | Maximum security lockdown engaged 3517 | -2/Testing | Found Prototype Processor 3517 | -2/Testing | Identified Exp. Core Analyzer 3621 | -2/Testing | Scanned by Researcher 3629 | -2/Testing | Found Prototype Hackware 3641 | -2/Testing | Spotted Striker 3658 | -2/Testing | Spotted Striker 3668 | -2/Testing | Spotted Alpha 7 3679 | -2/Testing | Discovered new exit (range 8) 3680 | -2/Testing | Identified exit to Access 3681 | -2/Testing | Entered Access 3681 | -1/Access | Evolved 2 slots: Power x1, Propulsion x1 3688 | -1/Access | Identified Ghost Barrier 3691 | -1/Access | Lost 4 parts (4n) 4108 | -1/Access | Build established: Hacker-Sprinter 4252 | -1/Access | Spotted B-99 Colossus 4291 | -1/Access | Spotted B-99 Colossus 4342 | -1/Access | Core integrity fell below 50% 4362 | -1/Access | Lost 12 parts (2p7n3u) 4366 | -1/Access | Spotted B-99 Colossus 4367 | -1/Access | Spotted B-99 Colossus 4375 | -1/Access | Core integrity fell below 20% 4396 | -1/Access | Destroyed by Swarm Drone with Compact Gauss Rifle Last Messages --------------- Penetrated by Slug. Hvy. Shock Bomb Launcher destroyed. Exp. Signal Interpreter destroyed. Penetrated by Slug. Slug penetrates Sealed Heavy Doors. Penetrated by Slug. Slug penetrates Sealed Heavy Doors. B-99 Colossus activates siege mode. Penetrated by Slug. Slug penetrates Sealed Heavy Doors. Penetrated by Slug. Slug penetrates Sealed Heavy Doors. Penetrated by Slug. Lgt. Quantum Reactor destroyed. Slug penetrates Sealed Heavy Doors. Penetrated by Slug. Slug penetrates Sealed Heavy Doors. Penetrated by Slug. Slug penetrates Sealed Heavy Doors. Penetrated by Slug. Map ----- +----------------------------------------------------+ | # ??????????????????????????????????????? | | # ??????????????????????????????????????? | | #= ?????????????????????????????????????? | | # ""????? #??????????????????????????????? | | ##### """""? #??????????????????????????????? | | ###?# """"" #??????????????????????????????? | | ""#?# """" ???????????????????????????????? | | ""#?# " ?????????????????????????????????? | | Y"#?# ???????????????????????????????????? | | ""#?# ?????????????????????????????????????? | | ""#?# ???????????????????????????????????????? | | ######+########?????????????????????????????????? | | #?????????????????????????????????? | | #?????????????????????????????????? | | #?????????????????????????????????? | | #?????????????????????????????????? | | #######+### #?????????????????????????????????? | | ??????????# #?????????????????????????????????? | | ??????????# #?????????????????????????????????? | | ??????????# #?????????????????????????????????? | | ??????????# #?????????????????????????????????? | | ??????????# #?????????????????????????????????? | | ??????????# #?#########???????????????????????? | | ?????"""??# #?# "???????????????????????? | | ?? """"" # ### BB """?????????????????????? | | " ##; BBn@ "?????????????????????? | | # n """?????????????????????? | | ??????????# "???????????????????????? | | ??? " "???????????????????????? | | ?????###### "???????????????????????? | | ??????????######## B "???????????????????????? | | ?????????????????# B "???????????????????????? | | ?????????????????# "???????????????????????? | | ?????????????????#########???????????????????????? | | ?????????????????????????????????????????????????? | | ?????????????????????????????????????????????????? | | ?????????????????????????????????????????????????? | | ?????????????????????????????????????????????????? | | ?????????????????????????????????????????????????? | | ?????????????????????????????????????????????????? | | ?????????????????????????????????????????????????? | | ?????????????????????????????hh??????????????????? | | ?????????????????????????????h???h???????????????? | | ?????????????????????????????????????????????????? | | ?????????????????????????????????????????????????? | | ?????????????????????????????????????????????????? | | ?????????????????????????????????????????????????? | | ?????????????????????????????????????????????????? | | ?????????????????????????????????????????????????? | | ?????????????????????????????????????????????????? | +----------------------------------------------------+ Best States ------------- Heat Dissipation 90 Energy Generation 95 Energy Capacity 570 Matter Stores 300 Matter Capacity 300 Sight Range 18 Robot Scan Range 30 Terrain Scan Range 16 Terrain Scan Density 210 Evasion (%) 66 Core Analysis 15 Offensive Hacking 38 Defensive Hacking 20 Item Schematics ----------------- None Robot Schematics ------------------ None Fabricated ------------ Nothing Alien Tech Used ----------------- None Achievements -------------- More Power To You Challenges ------------ None Game ------ Seed ThrusterHellfireDesublimator Manual? 0 Play Time 01:56:38 Cumulative 114.5 hours Start 2021.05.15 @ 22:17:16 End 2021.05.16 @ 00:20:47 Sessions 1 Manual Loads 0 Difficulty Rogue Special Mode None Game No. 189 Rogue 187 Adventurer 2 Explorer 0 Win Type - Total 1 Types 1/0/0/0/0/0/0/0/0 Lore% 55 Gallery% 52 Achievement% 44 Wizard Run 0 Options --------- ASCII 0 Keyboard 0 Movement Mouse Keybinds 0 Fullscreen 1 Font 18/SmallcapsGlow Map View 76x50 Tactical HUD 0 Map Filters NONE Filters NONE Steam 1 RUN: 06014236-117c-481e-8f35-2673b1903e8d